[Event "NJSK 2018 Jeugd A"]
[Site "Assen, Netherlands"]
[Date "2018.04.29"]
[Round "1.1"]
[White "Mesman, Edwyn"]
[Black "Vrolijk, Liam"]
[Result "0-1"]
[TimeControl "40/90m+30m+30sec/move"]
[WhiteElo "2082"]
[BlackElo "2432"]

1. d4 {[%clk 01:30:56]} {[%emt 00:00:03]} Nf6 {[%clk 01:30:45]} {[%emt
00:00:17]} 2. c4 {[%clk 01:31:22]} {[%emt 00:00:03]} e6 {[%clk 01:31:11]}
{[%emt 00:00:06]} 3. Nc3 {[%clk 01:31:49]} {[%emt 00:00:02]} Bb4 {[%clk
01:31:35]} {[%emt 00:00:06]} 4. Qc2 {[%clk 01:32:11]} {[%emt 00:00:06]} c5
{[%clk 01:31:23]} {[%emt 00:00:41]} 5. dxc5 {[%clk 01:32:05]} {[%emt 00:00:37]}
Qc7 {[%clk 01:31:46]} {[%emt 00:00:07]} 6. Nf3 {[%clk 01:32:05]} {[%emt
00:00:30]} a6 {[%clk 01:29:40]} {[%emt 00:02:36]} 7. g3 {[%clk 01:31:42]}
{[%emt 00:00:52]} Bxc5 {[%clk 01:28:19]} {[%emt 00:01:52]} 8. Bg2 {[%clk
01:31:21]} {[%emt 00:00:50]} O-O {[%clk 01:27:54]} {[%emt 00:00:55]} 9. O-O
{[%clk 01:26:11]} {[%emt 00:05:40]} Be7 {[%clk 01:26:36]} {[%emt 00:01:48]} 10.
b3 {[%clk 01:18:12]} {[%emt 00:08:30]} d6 {[%clk 01:26:16]} {[%emt 00:00:49]}
11. Nd4 {[%clk 01:17:25]} {[%emt 00:01:18]} Nc6 {[%clk 01:23:58]} {[%emt
00:02:47]} 12. Nxc6 {[%clk 01:14:42]} {[%emt 00:03:13]} bxc6 {[%clk 01:24:21]}
{[%emt 00:00:08]} 13. Bb2 {[%clk 01:15:01]} {[%emt 00:00:11]} d5 {[%clk
01:20:53]} {[%emt 00:03:57]} 14. cxd5 {[%clk 01:13:56]} {[%emt 00:01:35]} cxd5
{[%clk 01:20:13]} {[%emt 00:01:10]} 15. Rac1 {[%clk 01:14:10]} {[%emt
00:00:17]} Qa7 {[%clk 01:09:42]} {[%emt 00:11:01]} 16. Na4 {[%clk 00:53:33]}
{[%emt 00:21:07]} Bd7 {[%clk 01:09:10]} {[%emt 00:01:01]} 17. Qd2 {[%clk
00:45:58]} {[%emt 00:08:04]} Bxa4 {[%clk 01:06:03]} {[%emt 00:03:38]} 18. bxa4
{[%clk 00:45:47]} {[%emt 00:00:41]} Rac8 {[%clk 01:00:49]} {[%emt 00:05:44]} 19.
Bd4 {[%clk 00:33:03]} {[%emt 00:13:15]} Qd7 {[%clk 00:54:43]} {[%emt 00:06:35]}
20. Qa5 {[%clk 00:29:16]} {[%emt 00:04:18]} Qd6 {[%clk 00:47:36]} {[%emt
00:07:37]} 21. Rfd1 {[%clk 00:24:26]} {[%emt 00:05:20]} Nd7 {[%clk 00:42:51]}
{[%emt 00:05:14]} 22. e3 {[%clk 00:21:33]} {[%emt 00:03:24]} Bd8 {[%clk
00:40:29]} {[%emt 00:02:51]} 23. Qd2 {[%clk 00:21:16]} {[%emt 00:00:46]} Bb6
{[%clk 00:36:08]} {[%emt 00:04:52]} 24. e4 {[%clk 00:12:19]} {[%emt 00:09:27]}
Rxc1 {[%clk 00:33:55]} {[%emt 00:02:43]} 25. Qxc1 {[%clk 00:11:55]} {[%emt
00:00:54]} Bxd4 {[%clk 00:32:35]} {[%emt 00:01:50]} 26. Rxd4 {[%clk 00:12:16]}
{[%emt 00:00:09]} Nf6 {[%clk 00:32:51]} {[%emt 00:00:14]} 27. exd5 {[%clk
00:06:56]} {[%emt 00:05:50]} exd5 {[%clk 00:33:12]} {[%emt 00:00:09]} 28. Bf3
{[%clk 00:03:29]} {[%emt 00:03:57]} Rd8 {[%clk 00:31:28]} {[%emt 00:02:14]} 29.
Kg2 {[%clk 00:03:42]} {[%emt 00:00:17]} h6 {[%clk 00:31:51]} {[%emt 00:00:06]}
30. Qf4 {[%clk 00:03:50]} {[%emt 00:00:22]} Qxf4 {[%clk 00:25:12]} {[%emt
00:07:09]} 31. Rxf4 {[%clk 00:03:15]} {[%emt 00:01:07]} a5 {[%clk 00:19:19]}
{[%emt 00:06:22]} 32. Rd4 {[%clk 00:02:03]} {[%emt 00:01:42]} Kf8 {[%clk
00:17:59]} {[%emt 00:01:50]} 33. Kf1 {[%clk 00:01:33]} {[%emt 00:01:00]} Rb8
{[%clk 00:14:22]} {[%emt 00:04:07]} 34. Ke2 {[%clk 00:01:46]} {[%emt 00:00:17]}
Ke7 {[%clk 00:14:03]} {[%emt 00:00:49]} 35. Rd3 {[%clk 00:00:37]} {[%emt
00:01:40]} Rb2+ {[%clk 00:10:56]} {[%emt 00:03:36]} 36. Rd2 {[%clk 00:00:59]}
{[%emt 00:00:08]} Rxd2+ {[%clk 00:10:44]} {[%emt 00:00:42]} 37. Kxd2 {[%clk
00:01:25]} {[%emt 00:00:04]} Kd6 {[%clk 00:11:07]} {[%emt 00:00:07]} 38. Kc3
{[%clk 00:00:35]} {[%emt 00:01:20]} Kc5 {[%clk 00:11:14]} {[%emt 00:00:22]} 39.
a3 {[%clk 00:00:36]} {[%emt 00:00:31]} Ne4+ {[%clk 00:07:10]} {[%emt 00:04:33]}
40. Bxe4 {[%clk 00:00:38]} {[%emt 00:00:28]} dxe4 {[%clk 00:07:38]} {[%emt
00:00:02]} 41. h4 {[%clk 00:29:29]} {[%emt 00:01:39]} h5 {[%clk 00:37:11]}
{[%emt 00:00:56]} 42. Kd2 {[%clk 00:28:16]} {[%emt 00:01:44]} Kd4 {[%clk
00:37:33]} {[%emt 00:00:07]} 43. Ke2 {[%clk 00:28:43]} {[%emt 00:00:04]} f6
{[%clk 00:35:17]} {[%emt 00:02:47]} 44. f3 {[%clk 00:27:55]} {[%emt 00:01:18]}
e3 {[%clk 00:34:13]} {[%emt 00:01:32]} 45. g4 {[%clk 00:27:39]} {[%emt
00:00:46]} hxg4 {[%clk 00:34:24]} {[%emt 00:00:19]} 0-1

[Event "NJSK 2018 Jeugd A"]
[Site "Assen, Netherlands"]
[Date "2018.04.29"]
[Round "1.2"]
[White "Schoppen, Casper"]
[Black "Pols, Wiggert"]
[Result "1/2-1/2"]
[TimeControl "40/90m+30m+30sec/move"]
[WhiteElo "2396"]
[BlackElo "2068"]

1. e4 {[%clk 01:30:30]} c5 {[%clk 01:30:30]} 2. Nf3 {[%clk 01:30:30]} Nc6
{[%clk 01:30:30]} 3. d4 {[%clk 01:30:30]} cxd4 {[%clk 01:30:30]} 4. Nxd4 {[%clk
01:30:30]} e5 {[%clk 01:30:30]} 5. Nb5 {[%clk 01:30:30]} d6 {[%clk 01:30:30]} 6.
N1c3 {[%clk 01:30:30]} a6 {[%clk 01:30:30]} 7. Na3 {[%clk 01:30:30]} b5 {[%clk
01:30:30]} 8. Nd5 {[%clk 01:30:30]} Nge7 {[%clk 01:30:30]} 9. g3 {[%clk
01:30:30]} Nxd5 {[%clk 01:30:30]} 10. exd5 {[%clk 01:30:30]} Ne7 {[%clk
01:30:30]} 11. Bg2 {[%clk 01:30:30]} g6 {[%clk 01:30:30]} 12. O-O {[%clk
01:30:30]} Bg7 {[%clk 01:30:30]} 13. c3 {[%clk 01:30:30]} f5 {[%clk 01:30:30]}
14. Nc2 {[%clk 01:30:30]} O-O {[%clk 01:30:30]} 15. a4 {[%clk 01:30:30]} Bb7
{[%clk 01:30:30]} 16. Nb4 {[%clk 01:30:30]} e4 {[%clk 01:30:30]} 17. axb5
{[%clk 01:30:30]} axb5 {[%clk 01:30:30]} 18. Bg5 {[%clk 01:30:30]} h6 {[%clk
01:30:30]} 19. Rxa8 {[%clk 01:30:30]} Bxa8 {[%clk 01:30:30]} 20. Bxe7 {[%clk
01:30:30]} Qxe7 {[%clk 01:30:30]} 21. Qe2 {[%clk 01:30:30]} Rb8 {[%clk
01:30:30]} 22. f3 {[%clk 01:30:30]} Qa7+ {[%clk 01:30:30]} 23. Kh1 {[%clk
01:30:30]} e3 {[%clk 01:30:30]} 24. Re1 {[%clk 01:30:30]} f4 {[%clk 01:30:30]}
25. gxf4 {[%clk 01:30:30]} Qf7 {[%clk 01:30:30]} 26. Qxe3 {[%clk 01:30:30]}
Bxd5 {[%clk 01:30:30]} 27. Qd2 {[%clk 01:30:30]} Bc4 {[%clk 01:30:30]} 28. Qxd6
{[%clk 01:30:30]} Re8 {[%clk 01:30:30]} 29. Rxe8+ {[%clk 01:30:30]} Qxe8 {[%clk
01:30:30]} 30. Qd2 {[%clk 01:30:30]} Bf8 {[%clk 01:30:30]} 31. Nc2 {[%clk
01:30:30]} Qf7 {[%clk 01:30:30]} 32. Qd4 {[%clk 01:30:30]} h5 {[%clk 01:30:30]}
33. Ne3 {[%clk 01:30:30]} Bh6 {[%clk 01:30:30]} 34. Nxc4 {[%clk 01:30:30]} bxc4
{[%clk 01:30:30]} 35. Bf1 {[%clk 01:30:30]} Qxf4 {[%clk 01:30:30]} 36. Bxc4+
{[%clk 01:30:30]} Kh7 {[%clk 01:30:30]} 37. Qxf4 {[%clk 01:30:30]} Bxf4 {[%clk
01:30:30]} 38. Bf7 {[%clk 01:30:30]} Kg7 {[%clk 01:30:30]} 39. Be8 {[%clk
01:30:30]} h4 {[%clk 01:30:30]} 40. Kg2 {[%clk 01:30:30]} g5 {[%clk 01:30:30]}
41. h3 {[%clk 01:30:30]} Bc1 {[%clk 01:30:30]} 42. b3 {[%clk 01:30:30]} Bd2
{[%clk 01:30:30]} 43. c4 {[%clk 01:30:30]} Kf6 {[%clk 01:30:30]} 44. Kf2 {[%clk
01:30:30]} Ke7 {[%clk 01:30:30]} 45. Ke2 {[%clk 01:30:30]} Bb4 {[%clk
01:30:30]} 46. Bg6 {[%clk 01:30:30]} Kd6 {[%clk 01:30:30]} 47. Ke3 {[%clk
01:30:30]} Kc5 {[%clk 01:30:30]} 48. f4 {[%clk 01:30:30]} gxf4+ {[%clk
01:30:30]} 49. Kxf4 {[%clk 01:30:30]} Be1 {[%clk 01:30:30]} 50. Bf7 {[%clk
01:30:30]} Kb4 {[%clk 01:30:30]} 51. Ke4 {[%clk 01:30:30]} Kc5 {[%clk
01:30:30]} 52. b4+ {[%clk 01:30:30]} Bxb4 {[%clk 01:30:30]} 1/2-1/2

[Event "NJSK 2018 Jeugd A"]
[Site "Assen, Netherlands"]
[Date "2018.04.29"]
[Round "1.3"]
[White "Van Hoorn, Geert"]
[Black "Warmerdam, Max"]
[Result "0-1"]
[TimeControl "40/90m+30m+30sec/move"]
[WhiteElo "2008"]
[BlackElo "2378"]

1. e4 {[%clk 01:30:58]} {[%emt 00:00:02]} e5 {[%clk 01:30:47]} {[%emt
00:00:15]} 2. f4 {[%clk 01:31:24]} {[%emt 00:00:04]} exf4 {[%clk 01:31:07]}
{[%emt 00:00:10]} 3. Nf3 {[%clk 01:31:50]} {[%emt 00:00:03]} d6 {[%clk
01:31:09]} {[%emt 00:00:27]} 4. d4 {[%clk 01:31:08]} {[%emt 00:01:12]} g5
{[%clk 01:31:24]} {[%emt 00:00:14]} 5. Bc4 {[%clk 01:31:26]} {[%emt 00:00:13]}
Bg7 {[%clk 01:31:40]} {[%emt 00:00:13]} 6. O-O {[%clk 01:31:42]} {[%emt
00:00:14]} Nc6 {[%clk 01:31:56]} {[%emt 00:00:15]} 7. c3 {[%clk 01:32:02]}
{[%emt 00:00:10]} h6 {[%clk 01:32:17]} {[%emt 00:00:08]} 8. Qa4 {[%clk
01:32:19]} {[%emt 00:00:14]} Bd7 {[%clk 01:29:39]} {[%emt 00:03:08]} 9. Qb3
{[%clk 01:31:22]} {[%emt 00:01:27]} Na5 {[%clk 01:30:03]} {[%emt 00:00:06]} 10.
Bxf7+ {[%clk 01:26:36]} {[%emt 00:05:16]} Ke7 {[%clk 01:30:12]} {[%emt
00:00:21]} 11. Qa3 {[%clk 01:24:51]} {[%emt 00:02:14]} Kxf7 {[%clk 01:30:36]}
{[%emt 00:00:06]} 12. Qxa5 {[%clk 01:25:11]} {[%emt 00:00:12]} Kg6 {[%clk
01:26:53]} {[%emt 00:04:12]} 13. g3 {[%clk 01:20:24]} {[%emt 00:05:16]} fxg3
{[%clk 01:21:29]} {[%emt 00:05:54]} 14. hxg3 {[%clk 01:19:23]} {[%emt
00:01:32]} c5 {[%clk 01:17:22]} {[%emt 00:04:37]} 15. Qa3 {[%clk 01:16:23]}
{[%emt 00:03:29]} Bh3 {[%clk 01:12:14]} {[%emt 00:05:38]} 16. Rf2 {[%clk
01:11:43]} {[%emt 00:05:11]} Nf6 {[%clk 01:10:18]} {[%emt 00:02:25]} 17. Nbd2
{[%clk 00:58:26]} {[%emt 00:13:47]} Ng4 {[%clk 01:07:37]} {[%emt 00:03:11]} 18.
Re2 {[%clk 00:55:34]} {[%emt 00:03:22]} Rf8 {[%clk 01:06:45]} {[%emt 00:01:23]}
19. Qb3 {[%clk 00:54:33]} {[%emt 00:01:31]} Rxf3 {[%clk 00:29:32]} {[%emt
00:37:42]} 20. Nxf3 {[%clk 00:47:00]} {[%emt 00:08:03]} Qf6 {[%clk 00:29:54]}
{[%emt 00:00:08]} 21. Nh2 {[%clk 00:36:34]} {[%emt 00:10:57]} Rf8 {[%clk
00:29:13]} {[%emt 00:01:11]} 22. Bd2 {[%clk 00:29:29]} {[%emt 00:07:34]} Nxh2
{[%clk 00:23:11]} {[%emt 00:06:32]} 23. Kxh2 {[%clk 00:29:36]} {[%emt
00:00:23]} Bf1 {[%clk 00:23:04]} {[%emt 00:00:37]} 24. Rxf1 {[%clk 00:09:45]}
{[%emt 00:20:21]} Qxf1 {[%clk 00:23:27]} {[%emt 00:00:07]} 25. Rg2 {[%clk
00:08:58]} {[%emt 00:01:17]} cxd4 {[%clk 00:20:49]} {[%emt 00:03:08]} 26. cxd4
{[%clk 00:05:57]} {[%emt 00:03:31]} Bxd4 {[%clk 00:20:23]} {[%emt 00:00:55]} 27.
Qe6+ {[%clk 00:05:36]} {[%emt 00:00:52]} Qf6 {[%clk 00:20:32]} {[%emt
00:00:20]} 28. Qxf6+ {[%clk 00:04:27]} {[%emt 00:01:40]} Kxf6 {[%clk 00:19:20]}
{[%emt 00:01:42]} 29. Bb4 {[%clk 00:04:23]} {[%emt 00:00:35]} Ke5 {[%clk
00:18:25]} {[%emt 00:01:24]} 30. Kh3 {[%clk 00:03:30]} {[%emt 00:01:23]} Rf2
{[%clk 00:11:45]} {[%emt 00:07:10]} 31. Rxf2 {[%clk 00:03:18]} {[%emt
00:00:43]} Bxf2 {[%clk 00:12:05]} {[%emt 00:00:09]} 32. Kg4 {[%clk 00:03:45]}
{[%emt 00:00:03]} Bc5 {[%clk 00:12:08]} {[%emt 00:00:28]} 33. Bd2 {[%clk
00:03:18]} {[%emt 00:00:56]} Kxe4 {[%clk 00:12:12]} {[%emt 00:00:26]} 34. Kh5
{[%clk 00:03:31]} {[%emt 00:00:17]} Be3 {[%clk 00:12:30]} {[%emt 00:00:12]} 0-1

[Event "NJSK 2018 Jeugd A"]
[Site "Assen, Netherlands"]
[Date "2018.04.29"]
[Round "1.4"]
[White "Van Dael, Siem"]
[Black "Bueno, Mark"]
[Result "1-0"]
[TimeControl "40/90m+30m+30sec/move"]
[WhiteElo "2268"]
[BlackElo "1999"]

1. e4 {[%clk 01:30:57]} {[%emt 00:00:04]} e5 {[%clk 01:30:55]} {[%emt
00:00:06]} 2. Nf3 {[%clk 01:31:24]} {[%emt 00:00:05]} Nc6 {[%clk 01:31:21]}
{[%emt 00:00:05]} 3. Bc4 {[%clk 01:31:50]} {[%emt 00:00:03]} Bc5 {[%clk
01:31:47]} {[%emt 00:00:03]} 4. c3 {[%clk 01:32:15]} {[%emt 00:00:07]} Nf6
{[%clk 01:32:13]} {[%emt 00:00:03]} 5. d3 {[%clk 01:32:40]} {[%emt 00:00:05]}
d6 {[%clk 01:31:57]} {[%emt 00:00:44]} 6. O-O {[%clk 01:32:58]} {[%emt
00:00:12]} O-O {[%clk 01:32:22]} {[%emt 00:00:05]} 7. Bg5 {[%clk 01:33:25]}
{[%emt 00:00:03]} h6 {[%clk 01:32:30]} {[%emt 00:00:23]} 8. Bh4 {[%clk
01:33:51]} {[%emt 00:00:03]} Bg4 {[%clk 01:30:59]} {[%emt 00:02:01]} 9. a4
{[%clk 01:33:47]} {[%emt 00:00:34]} a5 {[%clk 01:30:58]} {[%emt 00:00:31]} 10.
Na3 {[%clk 01:34:00]} {[%emt 00:00:17]} g5 {[%clk 01:24:20]} {[%emt 00:07:07]}
11. Bg3 {[%clk 01:34:22]} {[%emt 00:00:08]} Bb6 {[%clk 01:15:10]} {[%emt
00:09:40]} 12. Ba2 {[%clk 01:33:57]} {[%emt 00:00:55]} Qe7 {[%clk 01:03:29]}
{[%emt 00:12:12]} 13. Nc4 {[%clk 01:26:53]} {[%emt 00:07:34]} Ba7 {[%clk
00:59:06]} {[%emt 00:04:54]} 14. Ne3 {[%clk 01:25:21]} {[%emt 00:02:01]} Bxe3
{[%clk 00:57:50]} {[%emt 00:01:46]} 15. fxe3 {[%clk 01:25:44]} {[%emt
00:00:06]} Kg7 {[%clk 00:57:07]} {[%emt 00:01:14]} 16. Qc2 {[%clk 01:20:55]}
{[%emt 00:05:19]} Bh5 {[%clk 00:53:45]} {[%emt 00:03:52]} 17. h3 {[%clk
01:20:04]} {[%emt 00:01:20]} Bg6 {[%clk 00:52:17]} {[%emt 00:01:58]} 18. Rf2
{[%clk 01:18:28]} {[%emt 00:02:06]} Nd7 {[%clk 00:46:32]} {[%emt 00:06:16]} 19.
Raf1 {[%clk 01:05:31]} {[%emt 00:13:27]} f5 {[%clk 00:45:22]} {[%emt 00:01:40]}
20. exf5 {[%clk 01:05:48]} {[%emt 00:00:13]} Rxf5 {[%clk 00:45:37]} {[%emt
00:00:15]} 21. e4 {[%clk 01:04:51]} {[%emt 00:01:27]} Rff8 {[%clk 00:44:28]}
{[%emt 00:01:39]} 22. Re2 {[%clk 00:58:10]} {[%emt 00:07:10]} Nf6 {[%clk
00:42:25]} {[%emt 00:02:33]} 23. Ref2 {[%clk 00:37:11]} {[%emt 00:21:29]} Nh5
{[%clk 00:38:37]} {[%emt 00:04:19]} 24. Bh2 {[%clk 00:37:35]} {[%emt 00:00:05]}
Rae8 {[%clk 00:33:33]} {[%emt 00:05:34]} 25. Qd2 {[%clk 00:35:29]} {[%emt
00:02:36]} Nf4 {[%clk 00:20:49]} {[%emt 00:13:14]} 26. Bxf4 {[%clk 00:35:53]}
{[%emt 00:00:06]} Rxf4 {[%clk 00:19:56]} {[%emt 00:01:23]} 27. g3 {[%clk
00:36:06]} {[%emt 00:00:17]} Rff8 {[%clk 00:20:23]} {[%emt 00:00:04]} 28. Nh2
{[%clk 00:33:36]} {[%emt 00:02:59]} Rxf2 {[%clk 00:08:11]} 29. Rxf2 {[%clk
00:33:17]} {[%emt 00:13:31]} Rf8 {[%clk 00:06:58]} {[%emt 00:01:44]} 30. Ng4
{[%clk 00:33:21]} {[%emt 00:00:25]} Qe8 {[%clk 00:03:02]} {[%emt 00:04:27]} 31.
h4 {[%clk 00:27:02]} {[%emt 00:06:48]} h5 {[%clk 00:02:54]} {[%emt 00:00:38]}
32. Qxg5 {[%clk 00:24:51]} {[%emt 00:02:42]} hxg4 {[%clk 00:03:11]} {[%emt
00:00:13]} 33. Rxf8 {[%clk 00:24:32]} {[%emt 00:00:48]} Kxf8 {[%clk 00:03:02]}
{[%emt 00:00:40]} 34. Qf6+ {[%clk 00:24:58]} {[%emt 00:00:04]} Bf7 {[%clk
00:02:44]} {[%emt 00:00:47]} 35. h5 {[%clk 00:25:09]} {[%emt 00:00:19]} Kg8
{[%clk 00:01:22]} {[%emt 00:01:52]} 36. h6 {[%clk 00:25:30]} {[%emt 00:00:08]}
Qf8 {[%clk 00:01:43]} {[%emt 00:00:10]} 37. Qg6+ {[%clk 00:25:54]} {[%emt
00:00:06]} Kh8 {[%clk 00:01:53]} {[%emt 00:00:21]} 38. Bxf7 {[%clk 00:26:06]}
{[%emt 00:00:17]} Ne7 {[%clk 00:02:14]} {[%emt 00:00:09]} 39. Qf6 {[%clk
00:25:00]} {[%emt 00:01:36]} Kh7 {[%clk 00:02:43]} {[%emt 00:00:01]} 40. Bg8
{[%clk 00:25:02]} {[%emt 00:00:28]} Qxg8 {[%clk 00:02:27]} {[%emt 00:00:46]} 41.
Qxe7 {[%clk 00:25:26]} {[%emt 00:00:06]} Kxh6 {[%clk 00:02:27]} {[%emt
00:00:30]} 42. Qh4 {[%clk 00:25:40]} {[%emt 00:00:16]} Kg7 {[%clk 00:02:27]}
{[%emt 00:00:30]} 43. Qxg4+ {[%clk 00:26:05]} {[%emt 00:00:05]} Kh7 {[%clk
00:02:29]} {[%emt 00:00:28]} 44. Qxg8 {[%clk 00:25:28]} {[%emt 00:01:07]} Kxg8
{[%clk 00:02:53]} {[%emt 00:00:06]} 45. Kf2 {[%clk 00:25:50]} {[%emt 00:00:08]}
Kf7 {[%clk 00:03:17]} {[%emt 00:00:06]} 46. Kf3 {[%clk 00:26:09]} {[%emt
00:00:11]} Kf6 {[%clk 00:03:45]} {[%emt 00:00:03]} 47. Kg4 {[%clk 00:26:20]}
{[%emt 00:00:17]} Kg6 {[%clk 00:04:14]} {[%emt 00:00:03]} 48. Kh4 {[%clk
00:26:42]} {[%emt 00:00:07]} Kh6 {[%clk 00:04:31]} {[%emt 00:00:13]} 49. g4
{[%clk 00:27:06]} {[%emt 00:00:06]} Kg6 {[%clk 00:04:56]} {[%emt 00:00:06]} 50.
g5 {[%clk 00:27:31]} {[%emt 00:00:04]} c6 {[%clk 00:05:06]} {[%emt 00:00:21]}
51. Kg4 {[%clk 00:27:11]} {[%emt 00:00:49]} d5 {[%clk 00:03:43]} {[%emt
00:01:54]} 52. Kh4 {[%clk 00:27:17]} {[%emt 00:00:23]} dxe4 {[%clk 00:03:48]}
{[%emt 00:00:25]} 53. dxe4 {[%clk 00:27:42]} {[%emt 00:00:05]} b5 {[%clk
00:04:12]} {[%emt 00:00:06]} 54. b3 {[%clk 00:27:59]} {[%emt 00:00:13]} 1-0

[Event "NJSK 2018 Jeugd A"]
[Site "Assen, Netherlands"]
[Date "2018.04.29"]
[Round "1.5"]
[White "Bekedam, Tyro"]
[Black "Kokje, Joris"]
[Result "0-1"]
[TimeControl "40/90m+30m+30sec/move"]
[WhiteElo "1955"]
[BlackElo "2265"]

1. e4 {[%clk 01:30:51]} {[%emt 00:00:09]} c5 {[%clk 01:30:56]} {[%emt
00:00:05]} 2. Nf3 {[%clk 01:31:15]} {[%emt 00:00:06]} d6 {[%clk 01:31:19]}
{[%emt 00:00:05]} 3. d4 {[%clk 01:31:40]} {[%emt 00:00:07]} cxd4 {[%clk
01:31:45]} {[%emt 00:00:04]} 4. Nxd4 {[%clk 01:32:05]} {[%emt 00:00:06]} Nf6
{[%clk 01:32:09]} {[%emt 00:00:03]} 5. Nc3 {[%clk 01:32:30]} {[%emt 00:00:04]}
a6 {[%clk 01:32:34]} {[%emt 00:00:05]} 6. Be3 {[%clk 01:31:44]} {[%emt
00:01:16]} e5 {[%clk 01:32:55]} {[%emt 00:00:09]} 7. Nb3 {[%clk 01:31:57]}
{[%emt 00:00:17]} Be7 {[%clk 01:33:17]} {[%emt 00:00:08]} 8. f3 {[%clk
01:31:39]} {[%emt 00:00:48]} h5 {[%clk 01:33:20]} {[%emt 00:00:27]} 9. Qd2
{[%clk 01:31:26]} {[%emt 00:00:43]} Be6 {[%clk 01:33:30]} {[%emt 00:00:20]} 10.
O-O-O {[%clk 01:31:13]} {[%emt 00:00:43]} Nbd7 {[%clk 01:33:07]} {[%emt
00:00:54]} 11. Kb1 {[%clk 01:16:20]} {[%emt 00:15:23]} b5 {[%clk 01:32:57]}
{[%emt 00:00:40]} 12. Bd3 {[%clk 01:08:20]} {[%emt 00:08:29]} Rc8 {[%clk
01:19:56]} {[%emt 00:13:31]} 13. Rhf1 {[%clk 00:56:14]} {[%emt 00:12:36]} O-O
{[%clk 01:06:17]} {[%emt 00:14:09]} 14. f4 {[%clk 00:46:41]} {[%emt 00:10:04]}
Nb6 {[%clk 00:43:08]} {[%emt 00:23:39]} 15. f5 {[%clk 00:30:16]} {[%emt
00:16:55]} Nc4 {[%clk 00:39:19]} {[%emt 00:04:20]} 16. Bxc4 {[%clk 00:24:43]}
{[%emt 00:06:02]} Bxc4 {[%clk 00:39:42]} {[%emt 00:00:07]} 17. Rfe1 {[%clk
00:24:38]} {[%emt 00:00:35]} b4 {[%clk 00:25:11]} {[%emt 00:15:01]} 18. Nd5
{[%clk 00:22:40]} {[%emt 00:02:27]} Bxd5 {[%clk 00:23:17]} {[%emt 00:02:25]} 19.
exd5 {[%clk 00:22:46]} {[%emt 00:00:24]} a5 {[%clk 00:22:12]} {[%emt 00:01:35]}
20. Qd3 {[%clk 00:18:36]} {[%emt 00:04:39]} Qc7 {[%clk 00:20:09]} {[%emt
00:02:34]} 21. Nd2 {[%clk 00:15:17]} {[%emt 00:03:48]} Rfe8 {[%clk 00:17:12]}
{[%emt 00:03:27]} 22. Ne4 {[%clk 00:13:40]} {[%emt 00:02:08]} Qc4 {[%clk
00:13:18]} {[%emt 00:04:24]} 23. Bc1 {[%clk 00:08:33]} {[%emt 00:05:36]} Qxd3
{[%clk 00:11:42]} {[%emt 00:02:06]} 24. Rxd3 {[%clk 00:08:17]} {[%emt
00:00:46]} Rc4 {[%clk 00:12:04]} {[%emt 00:00:08]} 25. Nd2 {[%clk 00:03:50]}
{[%emt 00:04:58]} Rc5 {[%clk 00:12:01]} {[%emt 00:00:33]} 26. Ne4 {[%clk
00:03:38]} {[%emt 00:00:42]} Rc4 {[%clk 00:11:58]} {[%emt 00:00:33]} 27. Nd2
{[%clk 00:04:03]} {[%emt 00:00:05]} Rf4 {[%clk 00:09:40]} {[%emt 00:02:48]} 28.
Nb3 {[%clk 00:03:54]} {[%emt 00:00:39]} Rxf5 {[%clk 00:09:55]} {[%emt
00:00:15]} 29. Nxa5 {[%clk 00:04:10]} {[%emt 00:00:14]} Rf2 {[%clk 00:06:17]}
{[%emt 00:04:09]} 30. Rd2 {[%clk 00:03:38]} {[%emt 00:01:02]} Rxd2 {[%clk
00:03:37]} {[%emt 00:03:10]} 31. Bxd2 {[%clk 00:04:04]} {[%emt 00:00:04]} Nxd5
{[%clk 00:04:02]} {[%emt 00:00:05]} 32. Nc6 {[%clk 00:04:22]} {[%emt 00:00:11]}
Rc8 {[%clk 00:03:08]} {[%emt 00:01:25]} 33. Nxe7+ {[%clk 00:04:06]} {[%emt
00:00:46]} Nxe7 {[%clk 00:03:33]} {[%emt 00:00:05]} 34. Bxb4 {[%clk 00:04:29]}
{[%emt 00:00:07]} Nf5 {[%clk 00:03:46]} {[%emt 00:00:17]} 35. b3 {[%clk
00:03:45]} {[%emt 00:01:14]} f6 {[%clk 00:03:43]} {[%emt 00:00:33]} 36. c4
{[%clk 00:02:36]} {[%emt 00:01:39]} Kf7 {[%clk 00:03:45]} {[%emt 00:00:29]} 37.
Kb2 {[%clk 00:01:59]} {[%emt 00:01:06]} Ke6 {[%clk 00:03:52]} {[%emt 00:00:22]}
38. a4 {[%clk 00:02:09]} {[%emt 00:00:21]} d5 {[%clk 00:02:41]} {[%emt
00:01:41]} 39. c5 {[%clk 00:01:45]} {[%emt 00:00:53]} d4 {[%clk 00:02:51]}
{[%emt 00:00:21]} 40. Kc2 {[%clk 00:01:07]} {[%emt 00:01:09]} Ne3+ {[%clk
00:01:39]} {[%emt 00:01:41]} 41. Kd2 {[%clk 00:28:21]} {[%emt 00:03:16]} Rb8
{[%clk 00:21:48]} {[%emt 00:10:21]} 42. Ba5 {[%clk 00:23:09]} {[%emt 00:05:41]}
Rxb3 {[%clk 00:18:40]} {[%emt 00:03:39]} 43. Rc1 {[%clk 00:23:03]} {[%emt
00:00:36]} Rb2+ {[%clk 00:17:35]} {[%emt 00:01:35]} 44. Ke1 {[%clk 00:22:35]}
{[%emt 00:00:58]} Rxg2 {[%clk 00:16:46]} {[%emt 00:01:19]} 45. c6 {[%clk
00:21:44]} {[%emt 00:01:21]} d3 {[%clk 00:17:08]} {[%emt 00:00:07]} 46. c7
{[%clk 00:21:46]} {[%emt 00:00:29]} Re2# {[%clk 00:17:02]} {[%emt 00:00:05]}
0-1